[Event "*** Titled Tuesday Blitz"]
[Site "Chess.com"]
[Date "2021.03.02"]
[Round "4"]
[White "Nozdrachev_Leonid"]
[Black "dropstoneDP"]
[Result "0-1"]
[WhiteElo "2552"]
[BlackElo "2981"]
[TimeControl "180+1"]
[EndTime "10:38:50 PST"]
[Termination "dropstoneDP won by resignation"]

1. e4 {[%clk 0:03:00.7]} 1... c6 {[%clk 0:02:59.6]} 2. d4 {[%clk 0:02:59.7]}
2... d5 {[%clk 0:02:59.6]} 3. Nc3 {[%clk 0:02:59.8]} 3... dxe4 {[%clk
0:02:59.8]} 4. Nxe4 {[%clk 0:03:00.7]} 4... Bf5 {[%clk 0:02:59.4]} 5. Ng3 {[%clk
0:03:00.1]} 5... Bg6 {[%clk 0:03:00]} 6. h4 {[%clk 0:02:57.1]} 6... h6 {[%clk
0:03:00.6]} 7. Nf3 {[%clk 0:02:56.2]} 7... Nd7 {[%clk 0:03:00.2]} 8. h5 {[%clk
0:02:56]} 8... Bh7 {[%clk 0:03:00.2]} 9. Bd3 {[%clk 0:02:56.9]} 9... Bxd3 {[%clk
0:03:00.4]} 10. Qxd3 {[%clk 0:02:57.8]} 10... e6 {[%clk 0:03:01.3]} 11. Bd2
{[%clk 0:02:56.5]} 11... Ngf6 {[%clk 0:03:00.8]} 12. O-O-O {[%clk 0:02:56.8]}
12... Be7 {[%clk 0:02:58.8]} 13. Kb1 {[%clk 0:02:55.7]} 13... O-O {[%clk
0:02:58]} 14. Ne4 {[%clk 0:02:55.3]} 14... Nxe4 {[%clk 0:02:57.6]} 15. Qxe4
{[%clk 0:02:56.2]} 15... Nf6 {[%clk 0:02:55.9]} 16. Qe2 {[%clk 0:02:55.7]} 16...
Qd5 {[%clk 0:02:56.1]} 17. Be3 {[%clk 0:02:51.4]} 17... b5 {[%clk 0:02:52]} 18.
Ne5 {[%clk 0:02:46.8]} 18... c5 {[%clk 0:02:28.4]} 19. Qxb5 {[%clk 0:02:41.4]}
19... Rfc8 {[%clk 0:01:59.5]} 20. g4 {[%clk 0:02:31.2]} 20... Rab8 {[%clk
0:01:59.3]} 21. Qc4 {[%clk 0:02:17.7]} 21... Qb7 {[%clk 0:01:33.3]} 22. Qb3
{[%clk 0:02:06.1]} 22... Qa8 {[%clk 0:01:08.6]} 23. Qd3 {[%clk 0:01:41.6]} 23...
Nd5 {[%clk 0:01:05]} 24. dxc5 {[%clk 0:01:31.1]} 24... Qb7 {[%clk 0:00:42.2]}
25. b3 {[%clk 0:01:21.5]} 25... Bxc5 {[%clk 0:00:38.6]} 26. Bxc5 {[%clk
0:01:16.3]} 26... Rxc5 {[%clk 0:00:39.5]} 27. c4 {[%clk 0:01:13.1]} 27... Nb4
{[%clk 0:00:39.4]} 28. Qe3 {[%clk 0:00:55.3]} 28... Nxa2 {[%clk 0:00:36.9]} 29.
Rd7 {[%clk 0:00:38.3]} 29... Qxh1+ {[%clk 0:00:33.8]} 30. Kxa2 {[%clk
0:00:37.6]} 30... Ra5+ {[%clk 0:00:34.3]} 31. Kb2 {[%clk 0:00:36.3]} 31... Qa1+
{[%clk 0:00:34.7]} 32. Kc2 {[%clk 0:00:36.6]} 32... Ra2+ {[%clk 0:00:32.3]} 33.
Kd3 {[%clk 0:00:36.1]} 33... Rxb3+ {[%clk 0:00:32.5]} 0-1

[Event "*** Titled Tuesday Blitz"]
[Site "Chess.com"]
[Date "2021.03.02"]
[Round "4"]
[White "konradrutkowski"]
[Black "sara_khm"]
[Result "0-1"]
[WhiteElo "2389"]
[BlackElo "2605"]
[TimeControl "180+1"]
[EndTime "10:38:51 PST"]
[Termination "sara_khm won by checkmate"]

1. e4 {[%clk 0:03:00.9]} 1... e5 {[%clk 0:02:59.6]} 2. Nf3 {[%clk 0:03:00.8]}
2... Nc6 {[%clk 0:02:59.7]} 3. Bb5 {[%clk 0:03:01.4]} 3... a6 {[%clk 0:02:59.6]}
4. Ba4 {[%clk 0:03:01.7]} 4... Nf6 {[%clk 0:02:59.9]} 5. O-O {[%clk 0:03:01.7]}
5... b5 {[%clk 0:03:00.1]} 6. Bb3 {[%clk 0:03:01.5]} 6... Bc5 {[%clk 0:03:00.7]}
7. Nxe5 {[%clk 0:02:58.5]} 7... Nxe5 {[%clk 0:03:00.4]} 8. d4 {[%clk 0:02:58.7]}
8... Bxd4 {[%clk 0:02:58.3]} 9. Qxd4 {[%clk 0:02:59.2]} 9... d6 {[%clk
0:02:58.6]} 10. Qe3 {[%clk 0:02:39.7]} 10... Bb7 {[%clk 0:02:51.4]} 11. f4
{[%clk 0:02:28.2]} 11... Ng6 {[%clk 0:02:16.6]} 12. Nc3 {[%clk 0:02:10]} 12...
O-O {[%clk 0:02:15.6]} 13. Qg3 {[%clk 0:01:35.4]} 13... b4 {[%clk 0:02:06.8]}
14. f5 {[%clk 0:01:26.6]} 14... Ne5 {[%clk 0:01:31.6]} 15. Bh6 {[%clk
0:01:02.7]} 15... Nh5 {[%clk 0:01:31.4]} 16. Qh3 {[%clk 0:01:02.7]} 16... bxc3
{[%clk 0:01:27.1]} 17. Qxh5 {[%clk 0:01:03.2]} 17... gxh6 {[%clk 0:01:27.2]} 18.
f6 {[%clk 0:01:00.5]} 18... Kh8 {[%clk 0:01:24.1]} 19. Qxh6 {[%clk 0:00:59.9]}
19... Rg8 {[%clk 0:01:24]} 20. Rf4 {[%clk 0:00:54.4]} 20... Rg6 {[%clk 0:01:23]}
21. Qh5 {[%clk 0:00:51.5]} 21... cxb2 {[%clk 0:01:17.1]} 22. Raf1 {[%clk
0:00:50.7]} 22... Qg8 {[%clk 0:01:16]} 23. g3 {[%clk 0:00:39.4]} 23... c5 {[%clk
0:01:05.1]} 24. Qd1 {[%clk 0:00:08.9]} 24... c4 {[%clk 0:01:03.7]} 25. Qxd6
{[%clk 0:00:09.3]} 25... cxb3 {[%clk 0:01:01.6]} 26. Qxe5 {[%clk 0:00:09.3]}
26... bxc2 {[%clk 0:00:55.8]} 27. Qxb2 {[%clk 0:00:09.8]} 27... Rxg3+ {[%clk
0:00:46.5]} 28. hxg3 {[%clk 0:00:09.3]} 28... Qxg3+ {[%clk 0:00:46.5]} 29. Kh1
{[%clk 0:00:10]} 29... Rg8 {[%clk 0:00:45.7]} 30. R4f2 {[%clk 0:00:08.8]} 30...
Qh3+ {[%clk 0:00:44.6]} 31. Rh2 {[%clk 0:00:07.9]} 31... Qxf1# {[%clk
0:00:44.5]} 0-1

[Event "*** Titled Tuesday Blitz"]
[Site "Chess.com"]
[Date "2021.03.02"]
[Round "4"]
[White "PavelShkapenko"]
[Black "SARGISMV"]
[Result "1-0"]
[WhiteElo "2694"]
[BlackElo "2460"]
[TimeControl "180+1"]
[EndTime "10:38:54 PST"]
[Termination "PavelShkapenko won by resignation"]

1. e4 {[%clk 0:03:00.9]} 1... e6 {[%clk 0:03:00.9]} 2. d4 {[%clk 0:02:59.8]}
2... d5 {[%clk 0:03:01.8]} 3. exd5 {[%clk 0:03:00.5]} 3... exd5 {[%clk
0:03:01.5]} 4. Nf3 {[%clk 0:03:01.4]} 4... Bd6 {[%clk 0:03:00.7]} 5. c4 {[%clk
0:02:59.8]} 5... dxc4 {[%clk 0:03:01.6]} 6. Bxc4 {[%clk 0:03:00.3]} 6... Nf6
{[%clk 0:03:01.9]} 7. O-O {[%clk 0:02:59.7]} 7... O-O {[%clk 0:03:02.1]} 8. Nc3
{[%clk 0:03:00]} 8... Nc6 {[%clk 0:02:53.8]} 9. h3 {[%clk 0:02:59.7]} 9... h6
{[%clk 0:02:52]} 10. Qc2 {[%clk 0:02:59.6]} 10... Nb4 {[%clk 0:02:47.6]} 11. Qb1
{[%clk 0:02:59.2]} 11... c6 {[%clk 0:02:47.8]} 12. Bxh6 {[%clk 0:02:52.4]} 12...
gxh6 {[%clk 0:02:24]} 13. Qg6+ {[%clk 0:02:50.6]} 13... Kh8 {[%clk 0:02:22.9]}
14. Qxh6+ {[%clk 0:02:18.1]} 14... Nh7 {[%clk 0:01:58.5]} 15. Ne4 {[%clk
0:02:17.7]} 15... Be7 {[%clk 0:01:51.9]} 16. Ne5 {[%clk 0:02:17.7]} 16... Nd5
{[%clk 0:01:33.5]} 17. Bd3 {[%clk 0:02:16.1]} 17... Bf5 {[%clk 0:01:28.7]} 18.
Qh5 {[%clk 0:01:34.2]} 18... Bxe4 {[%clk 0:01:15.2]} 19. Bxe4 {[%clk 0:01:33.9]}
19... Nf6 {[%clk 0:01:15.7]} 20. Nxf7+ {[%clk 0:01:33.9]} 20... Rxf7 {[%clk
0:01:13.9]} 21. Qxf7 {[%clk 0:01:34.2]} 21... Nxe4 {[%clk 0:01:14.8]} 22. Rfe1
{[%clk 0:01:31.4]} 22... Qxd4 {[%clk 0:00:53.2]} 23. Qxe7 {[%clk 0:01:17.9]}
23... Qxf2+ {[%clk 0:00:52.7]} 24. Kh1 {[%clk 0:01:18]} 24... Nhg5 {[%clk
0:00:45.2]} 25. Qe5+ {[%clk 0:01:10]} 25... Qf6 {[%clk 0:00:33.7]} 26. Rxe4
{[%clk 0:01:04.4]} 26... Nxe4 {[%clk 0:00:33.4]} 27. Qxe4 {[%clk 0:01:04.7]}
27... Rg8 {[%clk 0:00:32.2]} 28. Re1 {[%clk 0:00:59.1]} 28... Qxb2 {[%clk
0:00:29.9]} 29. Qh4+ {[%clk 0:00:58]} 29... Kg7 {[%clk 0:00:29.5]} 30. Qg5+
{[%clk 0:00:43.1]} 30... Kh7 {[%clk 0:00:17.9]} 31. Qh5+ {[%clk 0:00:41.5]}
31... Kg7 {[%clk 0:00:17.2]} 32. Re7+ {[%clk 0:00:41.2]} 32... Kf6 {[%clk
0:00:15.9]} 33. Qf7+ {[%clk 0:00:41.3]} 33... Kg5 {[%clk 0:00:16.5]} 34. Qxg8+
{[%clk 0:00:41.5]} 1-0

[Event "*** Titled Tuesday Blitz"]
[Site "Chess.com"]
[Date "2021.03.02"]
[Round "4"]
[White "kubal123"]
[Black "igorcadilhac"]
[Result "0-1"]
[WhiteElo "2211"]
[BlackElo "2412"]
[TimeControl "180+1"]
[EndTime "10:38:56 PST"]
[Termination "igorcadilhac won by resignation"]

1. d4 {[%clk 0:03:00.9]} 1... d5 {[%clk 0:02:59.5]} 2. Bf4 {[%clk 0:02:59.9]}
2... e6 {[%clk 0:02:57.3]} 3. e3 {[%clk 0:02:59.9]} 3... Bd6 {[%clk 0:02:57.4]}
4. Bg3 {[%clk 0:02:58.5]} 4... Nf6 {[%clk 0:02:56.4]} 5. Nf3 {[%clk 0:02:58.6]}
5... Ne4 {[%clk 0:02:56.5]} 6. Bd3 {[%clk 0:02:54.8]} 6... f5 {[%clk 0:02:52.4]}
7. Bh4 {[%clk 0:02:25.9]} 7... Qd7 {[%clk 0:02:42.5]} 8. Ne5 {[%clk 0:02:17.9]}
8... Bxe5 {[%clk 0:02:36.1]} 9. dxe5 {[%clk 0:02:18.8]} 9... Nc6 {[%clk
0:02:35.3]} 10. f4 {[%clk 0:02:08.6]} 10... g5 {[%clk 0:02:18.3]} 11. Bxe4
{[%clk 0:01:51.7]} 11... gxh4 {[%clk 0:02:17.4]} 12. Bd3 {[%clk 0:01:43.8]}
12... Qf7 {[%clk 0:02:13.5]} 13. Nd2 {[%clk 0:01:41.2]} 13... Rg8 {[%clk
0:02:10.7]} 14. Qe2 {[%clk 0:01:38.1]} 14... Qg6 {[%clk 0:02:09.5]} 15. O-O-O
{[%clk 0:01:15.2]} 15... Bd7 {[%clk 0:02:05.3]} 16. Nf3 {[%clk 0:01:10.9]} 16...
Qg4 {[%clk 0:02:03.8]} 17. h3 {[%clk 0:01:05.6]} 17... Qg3 {[%clk 0:02:03.3]}
18. Qe1 {[%clk 0:00:54.1]} 18... O-O-O {[%clk 0:01:53.7]} 19. Nxh4 {[%clk
0:00:52.4]} 19... Be8 {[%clk 0:01:44.3]} 20. Qxg3 {[%clk 0:00:40.2]} 20... Rxg3
{[%clk 0:01:43.6]} 21. Kd2 {[%clk 0:00:38.1]} 21... Bh5 {[%clk 0:01:42]} 22.
Rde1 {[%clk 0:00:30.1]} 22... d4 {[%clk 0:01:40.2]} 23. e4 {[%clk 0:00:27.7]}
23... fxe4 {[%clk 0:01:24.4]} 24. Bxe4 {[%clk 0:00:28.6]} 24... Rf8 {[%clk
0:01:23.7]} 25. Rhf1 {[%clk 0:00:24.9]} 25... Ne7 {[%clk 0:01:20.6]} 26. Bxh7
{[%clk 0:00:24.6]} 26... Nd5 {[%clk 0:01:20.8]} 27. f5 {[%clk 0:00:17.1]} 27...
Ne3 {[%clk 0:01:20]} 28. Rf2 {[%clk 0:00:17.6]} 28... Rg7 {[%clk 0:01:15.7]} 29.
Bg6 {[%clk 0:00:16.5]} 29... Bxg6 {[%clk 0:01:15.9]} 30. Nxg6 {[%clk 0:00:15.5]}
30... Rxg6 {[%clk 0:01:16.3]} 31. fxg6 {[%clk 0:00:16.4]} 31... Rxf2+ {[%clk
0:01:16.6]} 32. Kd3 {[%clk 0:00:15.6]} 32... Rxg2 {[%clk 0:01:15.5]} 33. c3
{[%clk 0:00:04.7]} 33... c5 {[%clk 0:01:12.6]} 34. cxd4 {[%clk 0:00:04.6]} 34...
cxd4 {[%clk 0:01:13.5]} 35. Rc1+ {[%clk 0:00:04.4]} 35... Kd7 {[%clk 0:01:13.7]}
36. Kxd4 {[%clk 0:00:04.8]} 36... Nf5+ {[%clk 0:01:11.9]} 37. Ke4 {[%clk
0:00:05]} 37... Rxg6 {[%clk 0:01:11.5]} 38. Rd1+ {[%clk 0:00:05]} 38... Ke7
{[%clk 0:01:11]} 39. Rc1 {[%clk 0:00:04.9]} 39... Kd7 {[%clk 0:01:10.9]} 40.
Rd1+ {[%clk 0:00:04.5]} 40... Kc7 {[%clk 0:01:11.3]} 41. Rc1+ {[%clk 0:00:04.9]}
41... Kb6 {[%clk 0:01:11.5]} 42. Rh1 {[%clk 0:00:05.4]} 42... Ng3+ {[%clk
0:01:10.5]} 0-1

[Event "*** Titled Tuesday Blitz"]
[Site "Chess.com"]
[Date "2021.03.02"]
[Round "4"]
[White "Manukyan_Artak"]
[Black "Mikedannnn"]
[Result "1/2-1/2"]
[WhiteElo "2345"]
[BlackElo "2570"]
[TimeControl "180+1"]
[EndTime "10:38:59 PST"]
[Termination "Game drawn by repetition"]

1. e4 {[%clk 0:02:56.2]} 1... c5 {[%clk 0:02:59.2]} 2. Nf3 {[%clk 0:02:55.7]}
2... e6 {[%clk 0:02:58.8]} 3. c3 {[%clk 0:02:55.8]} 3... Nf6 {[%clk 0:02:58.1]}
4. e5 {[%clk 0:02:55.9]} 4... Nd5 {[%clk 0:02:58.7]} 5. d4 {[%clk 0:02:56.8]}
5... cxd4 {[%clk 0:02:59.6]} 6. cxd4 {[%clk 0:02:57.1]} 6... b6 {[%clk
0:03:00.3]} 7. Nc3 {[%clk 0:02:57.1]} 7... Bb7 {[%clk 0:02:58.7]} 8. Bd3 {[%clk
0:02:56.3]} 8... Na6 {[%clk 0:02:58.8]} 9. Nxd5 {[%clk 0:02:51.6]} 9... Bxd5
{[%clk 0:02:59.7]} 10. O-O {[%clk 0:02:42.7]} 10... Nb4 {[%clk 0:02:56.3]} 11.
Bb1 {[%clk 0:02:42.5]} 11... Be7 {[%clk 0:02:54.4]} 12. a3 {[%clk 0:02:37.9]}
12... Nc6 {[%clk 0:02:54.2]} 13. Re1 {[%clk 0:02:31.5]} 13... b5 {[%clk
0:02:53.4]} 14. Qd3 {[%clk 0:02:18.1]} 14... Qb6 {[%clk 0:02:41]} 15. Be3 {[%clk
0:01:56.2]} 15... Qb7 {[%clk 0:02:35.7]} 16. Nd2 {[%clk 0:01:50.7]} 16... Na5
{[%clk 0:02:32.9]} 17. f3 {[%clk 0:01:46.5]} 17... Nc4 {[%clk 0:02:31.9]} 18.
Nxc4 {[%clk 0:01:45.9]} 18... bxc4 {[%clk 0:02:30.8]} 19. Qc2 {[%clk 0:01:43]}
19... Rb8 {[%clk 0:02:30.4]} 20. Bc1 {[%clk 0:01:40.5]} 20... Qb6 {[%clk
0:02:25.6]} 21. Rd1 {[%clk 0:01:39.1]} 21... g5 {[%clk 0:02:23.1]} 22. Ba2
{[%clk 0:01:19.1]} 22... Rc8 {[%clk 0:02:19.7]} 23. Be3 {[%clk 0:01:14.6]} 23...
h5 {[%clk 0:02:17.5]} 24. Rac1 {[%clk 0:01:12.8]} 24... g4 {[%clk 0:02:16.7]}
25. f4 {[%clk 0:01:12.7]} 25... h4 {[%clk 0:02:07.1]} 26. Rb1 {[%clk 0:01:03.4]}
26... h3 {[%clk 0:02:05.7]} 27. g3 {[%clk 0:01:03.2]} 27... Qb7 {[%clk
0:02:05.7]} 28. Qf2 {[%clk 0:00:57.1]} 28... Bf3 {[%clk 0:01:44.4]} 29. Rd2
{[%clk 0:00:50.9]} 29... Be4 {[%clk 0:01:39.7]} 30. Rc1 {[%clk 0:00:51]} 30...
O-O {[%clk 0:01:34.9]} 31. Bb1 {[%clk 0:00:43.3]} 31... Bxb1 {[%clk 0:01:33]}
32. Rxb1 {[%clk 0:00:44.2]} 32... c3 {[%clk 0:01:33.7]} 33. Rc2 {[%clk 0:00:41]}
33... Qe4 {[%clk 0:01:29.4]} 34. bxc3 {[%clk 0:00:38.6]} 34... Rxc3 {[%clk
0:01:22]} 35. Rxc3 {[%clk 0:00:38.7]} 35... Qxb1+ {[%clk 0:01:21.6]} 36. Rc1
{[%clk 0:00:39.3]} 36... Qd3 {[%clk 0:01:21.7]} 37. Qd2 {[%clk 0:00:36.7]} 37...
Qe4 {[%clk 0:01:19.4]} 38. Qe2 {[%clk 0:00:28.3]} 38... Bxa3 {[%clk 0:01:15.4]}
39. Qxg4+ {[%clk 0:00:27.5]} 39... Kh8 {[%clk 0:01:00.8]} 40. Qxh3+ {[%clk
0:00:27.5]} 40... Kg8 {[%clk 0:01:01.5]} 41. Qg4+ {[%clk 0:00:27.7]} 41... Kh8
{[%clk 0:01:02]} 42. Qh5+ {[%clk 0:00:27.6]} 42... Kg8 {[%clk 0:01:02.5]} 43.
Qg5+ {[%clk 0:00:27.7]} 43... Kh8 {[%clk 0:01:03]} 44. Qh6+ {[%clk 0:00:27.2]}
44... Kg8 {[%clk 0:01:03.4]} 45. Qg5+ {[%clk 0:00:27.4]} 45... Kh8 {[%clk
0:01:03.8]} 46. Qh6+ {[%clk 0:00:27.6]} 46... Kg8 {[%clk 0:01:04.2]} 47. Qg5+
{[%clk 0:00:18.4]} 1/2-1/2

[Event "*** Titled Tuesday Blitz"]
[Site "Chess.com"]
[Date "2021.03.02"]
[Round "4"]
[White "C_K_G"]
[Black "kekic76"]
[Result "1-0"]
[WhiteElo "2014"]
[BlackElo "2359"]
[TimeControl "180+1"]
[EndTime "10:38:59 PST"]
[Termination "C_K_G won on time"]

1. e4 {[%clk 0:03:00.9]} 1... c5 {[%clk 0:02:57.9]} 2. Nf3 {[%clk 0:03:00.8]}
2... e6 {[%clk 0:02:57.3]} 3. c3 {[%clk 0:03:00.9]} 3... d5 {[%clk 0:02:56.3]}
4. e5 {[%clk 0:03:00.6]} 4... Qb6 {[%clk 0:02:54.6]} 5. d4 {[%clk 0:02:58.3]}
5... Bd7 {[%clk 0:02:54.7]} 6. Bd3 {[%clk 0:02:57]} 6... Bb5 {[%clk 0:02:54.6]}
7. O-O {[%clk 0:02:56.2]} 7... Nc6 {[%clk 0:02:53.9]} 8. Re1 {[%clk 0:02:54.3]}
8... Rc8 {[%clk 0:02:43]} 9. Bc2 {[%clk 0:02:49]} 9... a5 {[%clk 0:02:38.7]} 10.
a4 {[%clk 0:02:33.6]} 10... Ba6 {[%clk 0:02:37.5]} 11. Nbd2 {[%clk 0:02:32]}
11... cxd4 {[%clk 0:02:35.5]} 12. cxd4 {[%clk 0:02:32.9]} 12... Nxd4 {[%clk
0:02:33.2]} 13. Nxd4 {[%clk 0:02:33.1]} 13... Qxd4 {[%clk 0:02:34]} 14. Nf3
{[%clk 0:02:33]} 14... Qxd1 {[%clk 0:02:31.9]} 15. Bxd1 {[%clk 0:02:33.9]} 15...
Bb4 {[%clk 0:02:30.9]} 16. Bd2 {[%clk 0:02:31.7]} 16... Bxd2 {[%clk 0:02:24.7]}
17. Nxd2 {[%clk 0:02:32.6]} 17... Ne7 {[%clk 0:02:24]} 18. Nb3 {[%clk
0:02:29.2]} 18... b6 {[%clk 0:02:22.8]} 19. Be2 {[%clk 0:02:23.2]} 19... Bxe2
{[%clk 0:02:03.8]} 20. Rxe2 {[%clk 0:02:24.1]} 20... Nc6 {[%clk 0:02:03.7]} 21.
f4 {[%clk 0:02:20]} 21... g6 {[%clk 0:01:59.4]} 22. g4 {[%clk 0:02:17.9]} 22...
h5 {[%clk 0:01:57.9]} 23. h3 {[%clk 0:02:05.5]} 23... hxg4 {[%clk 0:01:56.8]}
24. hxg4 {[%clk 0:02:06.4]} 24... Rh3 {[%clk 0:01:55.6]} 25. Ra3 {[%clk
0:01:36.6]} 25... Kd7 {[%clk 0:01:30.3]} 26. Nc5+ {[%clk 0:01:33.8]} 26... bxc5
{[%clk 0:01:15]} 27. Rxh3 {[%clk 0:01:33.2]} 27... c4 {[%clk 0:01:09.2]} 28. Rh7
{[%clk 0:01:29.9]} 28... Ke7 {[%clk 0:01:07.3]} 29. f5 {[%clk 0:01:29.2]} 29...
gxf5 {[%clk 0:01:07.1]} 30. gxf5 {[%clk 0:01:29.6]} 30... exf5 {[%clk
0:01:07.4]} 31. e6 {[%clk 0:01:24.9]} 31... Nd4 {[%clk 0:01:03.6]} 32. Rxf7+
{[%clk 0:01:23.5]} 32... Kd6 {[%clk 0:01:02.5]} 33. Rd7+ {[%clk 0:01:22.8]}
33... Kc6 {[%clk 0:01:01.9]} 34. Rg2 {[%clk 0:01:00.9]} 1-0

[Event "*** Titled Tuesday Blitz"]
[Site "Chess.com"]
[Date "2021.03.02"]
[Round "4"]
[White "LuisFSiles"]
[Black "mbachez"]
[Result "0-1"]
[WhiteElo "2296"]
[BlackElo "2466"]
[TimeControl "180+1"]
[EndTime "10:39:00 PST"]
[Termination "mbachez won by checkmate"]

1. d4 {[%clk 0:03:00.9]} 1... Nf6 {[%clk 0:02:58.5]} 2. c4 {[%clk 0:02:59.9]}
2... g6 {[%clk 0:02:58]} 3. Nc3 {[%clk 0:02:58.6]} 3... Bg7 {[%clk 0:02:56.1]}
4. e4 {[%clk 0:02:57.2]} 4... d6 {[%clk 0:02:56]} 5. Nf3 {[%clk 0:02:55.6]} 5...
O-O {[%clk 0:02:53.6]} 6. Be2 {[%clk 0:02:54.1]} 6... e5 {[%clk 0:02:53]} 7. O-O
{[%clk 0:02:53.2]} 7... Bg4 {[%clk 0:02:49.5]} 8. d5 {[%clk 0:02:29.7]} 8...
Bxf3 {[%clk 0:02:46.8]} 9. Bxf3 {[%clk 0:02:28.8]} 9... a5 {[%clk 0:02:46.9]}
10. Be3 {[%clk 0:02:26.8]} 10... Na6 {[%clk 0:02:46.7]} 11. a3 {[%clk
0:02:22.3]} 11... Nd7 {[%clk 0:02:40.2]} 12. g4 {[%clk 0:02:03.8]} 12... Bf6
{[%clk 0:02:35.7]} 13. Qd2 {[%clk 0:01:54.5]} 13... Nac5 {[%clk 0:02:32.1]} 14.
Rad1 {[%clk 0:01:07.7]} 14... a4 {[%clk 0:02:12]} 15. Nb5 {[%clk 0:00:47]} 15...
Kh8 {[%clk 0:01:52.9]} 16. Kh1 {[%clk 0:00:46.5]} 16... Rg8 {[%clk 0:01:41.7]}
17. g5 {[%clk 0:00:44.7]} 17... Nb3 {[%clk 0:01:39.7]} 18. Qd3 {[%clk 0:00:36]}
18... Ndc5 {[%clk 0:01:39.4]} 19. Qe2 {[%clk 0:00:33.3]} 19... Bxg5 {[%clk
0:01:37.4]} 20. Bxg5 {[%clk 0:00:32.7]} 20... Qxg5 {[%clk 0:01:36.3]} 21. Nxc7
{[%clk 0:00:31.7]} 21... Raf8 {[%clk 0:01:35.7]} 22. Nb5 {[%clk 0:00:31.4]}
22... Qe7 {[%clk 0:01:26.3]} 23. Rg1 {[%clk 0:00:28.7]} 23... f5 {[%clk
0:01:25.9]} 24. exf5 {[%clk 0:00:27.9]} 24... gxf5 {[%clk 0:01:26.7]} 25. Rxg8+
{[%clk 0:00:23.9]} 25... Rxg8 {[%clk 0:01:26.9]} 26. Rg1 {[%clk 0:00:24.5]}
26... Rxg1+ {[%clk 0:01:26.4]} 27. Kxg1 {[%clk 0:00:25.4]} 27... e4 {[%clk
0:01:26.3]} 28. Bg2 {[%clk 0:00:25.2]} 28... Nd3 {[%clk 0:01:23.4]} 29. Qh5
{[%clk 0:00:20.6]} 29... e3 {[%clk 0:00:44.2]} 30. Qxf5 {[%clk 0:00:12.2]} 30...
exf2+ {[%clk 0:00:43.3]} 31. Kf1 {[%clk 0:00:09.9]} 31... Nd2# {[%clk 0:00:40]}
0-1

[Event "*** Titled Tuesday Blitz"]
[Site "Chess.com"]
[Date "2021.03.02"]
[Round "4"]
[White "Oligan22"]
[Black "tjychess"]
[Result "1/2-1/2"]
[WhiteElo "2533"]
[BlackElo "2733"]
[TimeControl "180+1"]
[EndTime "10:39:03 PST"]
[Termination "Game drawn by repetition"]

1. e4 {[%clk 0:03:00.9]} 1... e5 {[%clk 0:03:00.1]} 2. Nf3 {[%clk 0:03:00.9]}
2... Nc6 {[%clk 0:03:00.2]} 3. Nc3 {[%clk 0:03:01.4]} 3... Nf6 {[%clk
0:03:00.6]} 4. a3 {[%clk 0:03:01.8]} 4... d6 {[%clk 0:02:55.9]} 5. d4 {[%clk
0:03:01.2]} 5... exd4 {[%clk 0:02:53.7]} 6. Nxd4 {[%clk 0:03:02.1]} 6... g6
{[%clk 0:02:49.1]} 7. Bg5 {[%clk 0:02:50.2]} 7... h6 {[%clk 0:02:47.6]} 8. Bh4
{[%clk 0:02:38.2]} 8... g5 {[%clk 0:02:38.5]} 9. Bg3 {[%clk 0:02:37.9]} 9... Bg7
{[%clk 0:02:39.4]} 10. Bb5 {[%clk 0:02:37.3]} 10... Bd7 {[%clk 0:02:39.3]} 11.
Bxc6 {[%clk 0:02:31.7]} 11... bxc6 {[%clk 0:02:40.2]} 12. h3 {[%clk 0:02:27.9]}
12... O-O {[%clk 0:02:34.6]} 13. O-O {[%clk 0:02:15.9]} 13... Re8 {[%clk
0:02:28.6]} 14. Qd3 {[%clk 0:02:09.9]} 14... Nh5 {[%clk 0:02:11.7]} 15. Bh2
{[%clk 0:01:56]} 15... Qf6 {[%clk 0:02:09.3]} 16. Nf5 {[%clk 0:01:36.1]} 16...
Bxf5 {[%clk 0:01:57]} 17. exf5 {[%clk 0:01:37]} 17... Rab8 {[%clk 0:01:56.5]}
18. Rab1 {[%clk 0:01:25]} 18... Nf4 {[%clk 0:01:45.4]} 19. Bxf4 {[%clk
0:01:24.6]} 19... gxf4 {[%clk 0:01:46.3]} 20. Ne2 {[%clk 0:01:14.5]} 20... Re5
{[%clk 0:01:30.1]} 21. Nxf4 {[%clk 0:00:45.6]} 21... Rxf5 {[%clk 0:01:25.6]} 22.
Ne2 {[%clk 0:00:42.5]} 22... Rd5 {[%clk 0:01:19.6]} 23. Qa6 {[%clk 0:00:29.9]}
23... Rd2 {[%clk 0:01:18.4]} 24. Ng3 {[%clk 0:00:27.5]} 24... Rxc2 {[%clk
0:01:15.8]} 25. Qxa7 {[%clk 0:00:20.6]} 25... Rbxb2 {[%clk 0:01:03.9]} 26. Rxb2
{[%clk 0:00:21.5]} 26... Qxb2 {[%clk 0:01:01.9]} 27. Qxc7 {[%clk 0:00:20.4]}
27... Be5 {[%clk 0:00:55]} 28. Qc8+ {[%clk 0:00:18]} 28... Kh7 {[%clk
0:00:49.4]} 29. Qf5+ {[%clk 0:00:17.6]} 29... Kg8 {[%clk 0:00:47.6]} 30. Nh5
{[%clk 0:00:16.7]} 30... Rc1 {[%clk 0:00:37.3]} 31. Qc8+ {[%clk 0:00:15.7]}
31... Kh7 {[%clk 0:00:36.9]} 32. Qf5+ {[%clk 0:00:15.8]} 32... Kg8 {[%clk
0:00:37.4]} 33. Qc8+ {[%clk 0:00:13]} 33... Kh7 {[%clk 0:00:37.6]} 34. Qf5+
{[%clk 0:00:13.3]} 34... Kg8 {[%clk 0:00:36.1]} 1/2-1/2